Cogmind - Beta 9.3 *** ADVENTURER MODE // 2019.12.20 @ 15:28:50 Player: lcbb_tuk Result: Destroyed by H-66 Slayer with Gauss Rifle Performance ------------- Evolutions (1) 500 Regions Visited (5) 1000 Robots Destroyed (51) 255 Value Destroyed (1685) 1685 Prototype IDs (5) 100 Alien Tech Used (0) 0 Bonus (599) 599 TOTAL SCORE: 4139 Bonus ------- Follower Combat Kills 265 Met Imprinter 300 Was Imprinted 300 Friendly Fire -266 Cogmind --------- Core Integrity 0/400 Matter 288/300 Energy 92/100 System Corruption 0% Temperature Cool (0) Movement Walking (120) Location -6/Proximity Caves Parts ------- > --- POWER (1) -------- (None) > --- PROPULSION (4) --- Enhanced Flexi-carbon Leg > --- UTILITY (2) ------ Small Storage Unit 0b10 Decoder Chip [Skirmisher] > --- WEAPON (2) ------- Slug Cannon Slug Cannon > --- INVENTORY (6) ---- Antimatter Reactor Improved Energy Well Relay Coupler [Swarmer] (103) Heavy Riot Gun Ripper Peak State ------------ > --- POWER ------------ Ion Engine > --- PROPULSION ------- Aluminum Leg Aluminum Leg Aluminum Leg Improved Aluminum Leg > --- UTILITY ---------- Small Storage Unit 0b10 Decoder Chip [Skirmisher] > --- WEAPON ----------- Bore Cannon Bore Cannon > --- INVENTORY -------- Advanced Core Analyzer Relay Coupler [Swarmer] Heavy Riot Gun Slug Cannon Slug Cannon Ripper [Rating: 24] Favorites ----------- Power Ion Engine Engine Ion Engine Propulsion Aluminum Leg Treads Light Treads Leg Aluminum Leg Utility Small Storage Unit Device Structural Scanner Storage Small Storage Unit Processor Armor Integrity Analyzer Weapon Bore Cannon Energy Gun Small Laser Energy Cannon Beam Cannon Ballistic Gun Light Assault Rifle Ballistic Cannon Bore Cannon Launcher Grenade Launcher Build | -11 -10 -9 -9 -7 -6 ------- Run | Scr Mat Mat Min Zio Pro Slots Evolved 2 | . . 2 . . . Power . | . . . . . . Propulsion 2 | . . 2 . . . Utility . | . . . . . . Weapon . | . . . . . . Parts Attached 48 | 7 16 4 14 4 3 Power 5 | 1 1 . 3 . . Engine 5 | 1 1 . 3 . . Core . | . . . . . . Reactor . | . . . . . . Propulsion 15 | 3 5 2 4 . 1 Treads 1 | 1 . . . . . Leg 14 | 2 5 2 4 . 1 Wheel . | . . . . . . Hover . | . . . . . . Flight . | . . . . . . Utility 6 | 1 3 . 1 1 . Device 1 | . 1 . . . . Storage 3 | 1 2 . . . . Processor 2 | . . . 1 1 . Hackware . | . . . . . . Protection . | . . . . . . Artifact . | . . . . . . Weapon 22 | 2 7 2 6 3 2 Energy Gun 10 | 2 3 1 3 1 . Energy Cannon 2 | . 2 . . . . Ballistic Gun 5 | . 2 . 3 . . Ballistic Cannon 4 | . . . . 2 2 Launcher 1 | . . 1 . . . Special Weapon . | . . . . . . Impact Weapon . | . . . . . . Slashing Weapon . | . . . . . . Piercing Weapon . | . . . . . . Special Melee Weapon . | . . . . . . Unidentified Prototypes 1 | . . . . . 1 Parts Lost 14 | . 3 2 4 . 5 Power 2 | . . 1 . . 1 Propulsion 6 | . . . 2 . 4 Utility . | . . . . . . Weapon 6 | . 3 1 2 . . Highest Loss Streak 5 | . 2 1 2 . 5 Average Slot Usage (%) 95 | . 98 93 98 100 55 Engine 11 | . 14 8 10 11 1 Leg 35 | . 28 41 42 44 9 Device 1 | . 1 11 4 . . Storage 16 | . 25 11 11 11 11 Processor 5 | . . . 6 11 11 Energy Gun 5 | . 8 4 7 4 . Energy Cannon 1 | . 2 11 . . . Ballistic Gun 9 | . 16 . 14 4 . Ballistic Cannon 6 | . . . . 13 22 Naked Turns . | . . . . . . Heaviest Build 27 | 11 15 12 15 27 27 Greatest Support 43 | 20 20 43 43 43 43 Greatest Overweight (x) 7 | 1 . . . . 7 Average Overweight (x) . | . . . . . 2 Largest Inventory Capacity 8 | 6 8 6 6 6 6 Average Capacity 6 | 5 6 6 6 6 6 Most Carried 8 | 4 8 6 6 6 5 Average Carried 3 | . 4 2 3 2 4 Final Capacity 6 | 6 6 6 6 6 6 Final Carried 6 | 1 4 6 . 5 5 Class Distribution -------------------- 53% | Mutant 24% | Scavenger-Mutant 22% | Messiah-Mutant Dominant Class ---------------- Mutant | -10/Materials Mutant | -9/Materials Scavenger-Mutant | -9/Mines Messiah-Mutant | -7/Zion Messiah-Mutant | -6/Proximity Caves Resources | -11 -10 -9 -9 -7 -6 ----------- Run | Scr Mat Mat Min Zio Pro Matter Collected 1144 | 133 386 40 287 . 298 Remotely . | . . . . . . Salvage Created 1935 | . 874 387 438 . 236 Parts 107 | . 42 29 23 . 13 Haulers Intercepted 1 | . . 1 . . . Recyclers Shooed . | . . . . . . Parts Field Recycled . | . . . . . . Retrieved Matter . | . . . . . . Parts Self-Destructed 17 | . . . . . 17 Prevented . | . . . . . . Kills | -11 -10 -9 -9 -7 -6 ------- Run | Scr Mat Mat Min Zio Pro Combat Hostiles Destroyed 44 | . 19 11 10 . 4 Guns 31 | . 18 4 9 . . Cannons 8 | . 1 3 . . 4 AOE 5 | . . 4 1 . . Classes Destroyed 8 | . 3 3 2 . . Worker 1 | . 1 . . . . Builder 1 | . . . 1 . . Hauler 1 | . . 1 . . . Watcher 3 | . 1 2 . . . Swarmer 4 | . . 3 . . 1 Grunt 35 | . 19 7 8 . 1 Brawler 2 | . . . 2 . . Sentry 3 | . . 1 . . 2 Enhanced Grunt 1 | . . . . . 1 Best Kill Streak 7 | . 4 7 3 . 1 Combat Bots Only 6 | . 4 6 3 . 1 Max Kills in Single Turn 3 | . 1 3 1 . 1 Gunslinging . | . . . . . . Exploded 2 | . . 2 1 . . Melee . | . . . . . . Uniques/NPCs Destroyed . | . . . . . . Combat | -11 -10 -9 -9 -7 -6 -------- Run | Scr Mat Mat Min Zio Pro Damage Taken 2202 | . 602 457 317 . 826 Core 523 | . 116 40 28 . 339 Absorbed by Shields . | . . . . . . Core Remaining (%) 76 | 100 53 . . . . Volleys Fired 154 | . 74 33 28 . 19 Largest 2 | . 2 2 2 . 2 Hottest 120 | . 100 120 70 . 114 Shots Fired 281 | . 145 46 52 . 38 Gun 208 | . 143 14 51 . . Cannon 65 | . 2 25 . . 38 Launcher 8 | . . 7 1 . . Special . | . . . . . . Kinetic 166 | . 99 . 29 . 38 Thermal 107 | . 46 39 22 . . Explosive 8 | . . 7 1 . . Electromagnetic . | . . . . . . Robot Hit Streak 19 | . 18 17 19 . 18 Robot Miss Streak 5 | . 2 5 1 . 3 Penetration Max 1 | . . . . . 1 Secondary Targets 3 | . 2 . 1 . . Max Gunslinging Chain 1 | . 1 . 1 . . Shots Hit Robots 215 | . 115 32 48 . 20 Core Hits 103 | . 54 20 20 . 9 Critical Hits 16 | . 4 . . . 12 Critical Kills 6 | . 2 . . . 4 Critical Parts Destroyed 10 | . 2 . . . 8 Melee Attacks . | . . . . . . Impact . | . . . . . . Slashing . | . . . . . . Piercing . | . . . . . . Sneak Attacks . | . . . . . . Combat Hostiles . | . . . . . . Follow-up Attacks . | . . . . . . Damage Inflicted 3346 | . 1048 989 701 . 608 Guns 1703 | . 990 96 617 . . Cannons 1030 | . 35 387 . . 608 Explosions 590 | . . 506 84 . . Melee . | . . . . . . Ramming 23 | . 23 . . . . Kinetic 1603 | . 606 . 389 . 608 Thermal 1130 | . 419 483 228 . . Explosive 590 | . . 506 84 . . Electromagnetic . | . . . . . . Impact . | . . . . . . Slashing . | . . . . . . Piercing . | . . . . . . Highest Corruption . | . . . . . . Average Corruption . | . . . . . . Corruption Purged . | . . . . . . Overload Shots . | . . . . . . Overflow Damage 24 | . . 24 . . . Projectiles 24 | . . 24 . . . Explosions . | . . . . . . Melee . | . . . . . . Knockbacks 3 | . 1 . . . 2 Impact 1 | . 1 . . . . Kinetic 2 | . . . . . 2 Secondary . | . . . . . . Self-Inflicted Damage 15 | . 1 . 14 . . Shots 1 | . . . 1 . . Rammed 1 | . 1 . . . . Targets Rammed 4 | . 4 . . . . Kicked 3 | . 3 . . . . Crushed . | . . . . . . Highest Temperature 557 | . 105 297 44 . 557 Average Temperature 96 | . 36 98 16 . 246 Received Heat Transfer 1002 | . 435 135 189 . 243 Effects 8 | . . . . . 8 Energy Bleed 1 | . . . . . 1 Interference 3 | . . . . . 3 Matter Decay 1 | . . . . . 1 Damage (minor) 1 | . . . . . 1 Damage (major) 1 | . . . . . 1 Damage (core) 1 | . . . . . 1 Siege Activations . | . . . . . . Robots Corrupted . | . . . . . . Combat Hostiles . | . . . . . . Parts Fried . | . . . . . . Impact Corruptions . | . . . . . . Robots Melted . | . . . . . . Combat Hostiles . | . . . . . . Parts Melted 5 | . 2 2 1 . . Heat Transferred 2513 | . 949 1039 525 . . Parts Sabotaged . | . . . . . . Parts Stolen . | . . . . . . Parts Stripped . | . . . . . . Power Chain Reactions . | . . . . . . Missiles Intercepted . | . . . . . . Alert | -11 -10 -9 -9 -7 -6 ------- Run | Scr Mat Mat Min Zio Pro Peak Influence 310 | . 284 310 302 . . Average Influence 120 | . 103 129 187 . . Maximum Alert Level 1 | . 1 1 1 . . Low Security (%) 77 | 100 90 69 39 . . Level 1 22 | . 9 30 60 . . Level 2 . | . . . . . . Level 3 . | . . . . . . Level 4 . | . . . . . . Level 5 . | . . . . . . High Security . | . . . . . . Max Security . | . . . . . . Squads Dispatched 9 | . 5 2 1 . 1 Investigation 9 | . 5 2 1 . 1 Extermination . | . . . . . . Reinforcement . | . . . . . . Assault . | . . . . . . Garrison . | . . . . . . Intercept . | . . . . . . Construction Impeded . | . . . . . . Haulers Reinforced . | . . . . . . Stealth | -11 -10 -9 -9 -7 -6 --------- Run | Scr Mat Mat Min Zio Pro Distress Signals 4 | . 1 3 . . . Communications Jammed . | . . . . . . Distress Signals . | . . . . . . Times Spotted 62 | . 25 12 11 . 14 Peak Tracking Total 10 | . 3 6 3 . 10 Tactical Retreats 2 | . . . 2 . . Traps | -11 -10 -9 -9 -7 -6 ------- Run | Scr Mat Mat Min Zio Pro Traps Triggered 2 | . 1 1 . . . Indirectly . | . . . . . . Trap Hack Attempts . | . . . . . . Triggered . | . . . . . . Disarmed . | . . . . . . Reprogrammed . | . . . . . . Reused . | . . . . . . Traps Extracted . | . . . . . . Installed . | . . . . . . Triggered . | . . . . . . Machines | -11 -10 -9 -9 -7 -6 ---------- Run | Scr Mat Mat Min Zio Pro Machines Disabled 6 | . . 4 . . 2 Max in Single Turn 2 | . . 2 . . 1 Machines Sabotaged . | . . . . . . Garrisons Compromised . | . . . . . . Overloaded Fab Kills . | . . . . . . Fab Network Shutdowns . | . . . . . . Hacking | -11 -10 -9 -9 -7 -6 --------- Run | Scr Mat Mat Min Zio Pro Machines Accessed 13 | . 10 1 1 . 1 Terminals 9 | . 7 . 1 . 1 Fabricators . | . . . . . . Repair Stations 2 | . 1 1 . . . Recycling Units 2 | . 2 . . . . Scanalyzers . | . . . . . . Garrison Access . | . . . . . . Total Hacks 57 | . 46 4 4 . 3 Successful 50 | . 41 2 4 . 3 Failed 7 | . 5 2 . . . Catastrophic . | . . . . . . Database Lockouts . | . . . . . . Manual 3 | . . . . 3 . Terminals 39 | . 32 . 4 . 3 Fabricators . | . . . . . . Repair Stations 8 | . 4 4 . . . Recycling Units 10 | . 10 . . . . Scanalyzers . | . . . . . . Garrison Access . | . . . . . . Terminal Hacks 35 | . 28 . 4 . 3 Record 17 | . 13 . 1 . 3 Prototype ID Bank 2 | . 2 . . . . Emergency Access Points 1 | . 1 . . . . Recycling Unit Index 1 | . 1 . . . . Scanalyzer Index 1 | . 1 . . . . Alert Level 3 | . 1 . 2 . . Locate Traps 1 | . 1 . . . . Dispatch Records 2 | . 1 . 1 . . Security Status 1 | . 1 . . . . Surveillance Status 1 | . 1 . . . . Patrol Status 1 | . 1 . . . . Recall Reinforcements 1 | . 1 . . . . Hauler Manifests 2 | . 2 . . . . Zone Layout 1 | . 1 . . . . Fabricator Hacks . | . . . . . . Repair Station Hacks 5 | . 3 2 . . . Scan Component 2 | . 1 1 . . . Repair 2 | . 1 1 . . . Refit 1 | . 1 . . . . Recycling Unit Hacks 10 | . 10 . . . . Recycle Component 1 | . 1 . . . . Process 2 | . 2 . . . . Report Inventory 2 | . 2 . . . . Retrieve Matter 1 | . 1 . . . . Retrieve Components 4 | . 4 . . . . Scanalyzer . | . . . . . . Garrison Access Hacks . | . . . . . . Unauthorized Hacks . | . . . . . . Terminals . | . . . . . . Fabricators . | . . . . . . Repair Stations . | . . . . . . Recycling Units . | . . . . . . Scanalyzers . | . . . . . . Garrison Access . | . . . . . . Data Cores Recovered . | . . . . . . Used . | . . . . . . Hacking Detections 12 | . 9 1 1 . 1 Full Trace Events 10 | . 7 1 1 . 1 Feedback Events . | . . . . . . Feedback Blocked . | . . . . . . Robot Schematics Acquired . | . . . . . . Robots Built . | . . . . . . Matter . | . . . . . . Time . | . . . . . . Total Robot Build Rating . | . . . . . . Part Schematics Acquired . | . . . . . . Parts Built . | . . . . . . Matter . | . . . . . . Time . | . . . . . . Total Part Build Rating . | . . . . . . Parts Repaired 2 | . 1 1 . . . Time 39 | . 26 13 . . . Parts Recycled 1 | . 1 . . . . Recycled Matter 160 | . 160 . . . . Retrieved Matter 189 | . 189 . . . . Retrieved Components 3 | . 3 . . . . Parts Scanalyzed . | . . . . . . Part Schematics Acquired . | . . . . . . Parts Damaged . | . . . . . . Bothacking | -11 -10 -9 -9 -7 -6 ------------ Run | Scr Mat Mat Min Zio Pro Used RIF Installer . | . . . . . . Robots Hacked . | . . . . . . Non-combat . | . . . . . . Combat . | . . . . . . Robot Hacks Applied . | . . . . . . Relay Couplers Released . | . . . . . . Robots Rewired . | . . . . . . Allies Hacked . | . . . . . . Hacks Repelled . | . . . . . . Allies | -11 -10 -9 -9 -7 -6 -------- Run | Scr Mat Mat Min Zio Pro Total Allies 6 | . . . . 6 . Largest Group 6 | . . . . 6 1 Highest-Rated Group 339 | . . . . 339 94 Highest-Rated Ally 94 | . . . . 94 94 Total Orders . | . . . . . . Ally Attacks 22 | . . . . . 22 Total Damage 696 | . . . . . 696 Kills 9 | . . . . . 9 Allies Corrupted . | . . . . . . Allies Melted . | . . . . . . Intel | -11 -10 -9 -9 -7 -6 ------- Run | Scr Mat Mat Min Zio Pro Robot Analysis Total . | . . . . . . Derelict Logs Recovered 3 | . . . . 2 1 Drone Launches . | . . . . . . Drone Recoveries . | . . . . . . Exploration | -11 -10 -9 -9 -7 -6 ------------- Run | Scr Mat Mat Min Zio Pro Turns Passed 3892 | 70 1440 239 482 1392 269 Spaces Moved 2639 | 49 970 118 297 1116 89 Core 44 | 11 . . . . 33 Treads 1 | 1 . . . . . Legs 2594 | 37 970 118 297 1116 56 Wheels . | . . . . . . Hover . | . . . . . . Flight . | . . . . . . Fastest Speed 50 | 50 120 120 120 120 120 Average Speed 122 | 109 120 120 120 120 210 Slowest Speed 400 | 160 120 120 120 120 400 Overloaded Moves . | . . . . . . Propulsion Burnouts . | . . . . . . Robots Hopped . | . . . . . . Cave-ins Triggered . | . . . . . . Exploration Rate (%) 45 | 3 92 14 56 91 15 Regions Visited 5 Branch Regions 3 Pre-discovered Areas 1 | . . . . 1 . Known Exits Taken . | . . . . . . Unknown Exits Taken 5 | 1 1 1 1 1 . Scrap Searched 1 | . . . 1 . . Spaces Dug . | . . . . . . Terrain Destroyed 83 | . . 70 7 . 6 Melee . | . . . . . . Projectile 6 | . . . . . 6 AOE 77 | . . 70 7 . . Actions | -11 -10 -9 -9 -7 -6 --------- Run | Scr Mat Mat Min Zio Pro Total 3037 | 66 1121 169 376 1170 135 Wait 92 | . 25 9 5 34 19 Move 2634 | 48 969 117 296 1115 89 Hop . | . . . . . . Pick Up 65 | 9 20 6 16 11 3 Fast Attach . | . . . . . . Attach 24 | 7 5 4 5 2 1 Detach 1 | . 1 . . . . Swap 25 | . 11 . 9 3 2 Drop 38 | 2 12 . 17 5 2 Fire 154 | . 74 33 28 . 19 Melee . | . . . . . . Ram . | . . . . . . Kick 4 | . 4 . . . . Crush . | . . . . . . Escape Stasis . | . . . . . . Rewire . | . . . . . . Trap . | . . . . . . Miscellaneous . | . . . . . . Route ------- -11/Scrapyard -10/Materials (discovered 3 exits: *Mat x3) -9/Materials -9/Mines (discovered 2 exits: [*Mat] / *Zio) -7/Zion -6/Proximity Caves History --------- Turn | Location | Event 15 | -11/Scrapyard | Discovered new exit (range 16) 71 | -11/Scrapyard | Entered Materials 288 | -10/Materials | Discovered new exit (range 12) 302 | -10/Materials | Build established: Mutant 484 | -10/Materials | Discovered new exit (range 12) 592 | -10/Materials | Discovered new exit (range 5) 890 | -10/Materials | Repaired Ion Engine? 1511 | -10/Materials | Entered another Materials area 1511 | -9/Materials | Evolved 2 slots: Propulsion x2 1625 | -9/Materials | Repaired Beam Cannon? 1703 | -9/Materials | Discovered new exit (range 13) 1750 | -9/Materials | Entered Mines 1773 | -9/Mines | Met a Derelict bent on vengeance 2101 | -9/Mines | Discovered new exit (range 13) 2201 | -9/Mines | Build established: Scavenger-Mutant 2225 | -9/Mines | A Derelict revealed a hidden shortcut to a safe place 2232 | -9/Mines | Entered Zion 2244 | -7/Zion | Given A8's code to call for help 2324 | -7/Zion | Learned Factory terminal intel 2825 | -7/Zion | Learned location of Data Miner (-6) 3035 | -7/Zion | Imprinted 3037 | -7/Zion | Declared Zion's savior 3293 | -7/Zion | Enhanced Grunt warped into view, answering call for help 3298 | -7/Zion | Enhanced Grunt warped into view, answering call for help 3325 | -7/Zion | Build established: Messiah-Mutant 3608 | -7/Zion | Discovered new exit (range 15) 3624 | -7/Zion | Entered Proximity Caves 3624 | -6/Proximity Caves | Accompanied by 1 ally 3652 | -6/Proximity Caves | Attracted the attention of an 0b10 base 3676 | -6/Proximity Caves | Core integrity fell below 50% 3682 | -6/Proximity Caves | Core integrity fell below 20% 3708 | -6/Proximity Caves | Lost 5 parts (1p4n) 3877 | -6/Proximity Caves | Learned Factory emergency access door positions 3893 | -6/Proximity Caves | Destroyed by H-66 Slayer with Gauss Rifle Last Messages --------------- S-27 Virus destroyed. Acquired 24 matter. VTOL Module fries itself beyond repair. Slug penetrates Machine. Slug penetrates Wall. Enhanced Grunt suffers critical hit. Enhanced Grunt destroyed. [Achievement: Backstab] Slug penetrates Wall. Y-64 Sentinel suffers critical hit. Destroyed Wave Gun. Y-64 Sentinel destroyed. Acquired Prototype Leg. Acquired Prototype Storage. Identified Enh. Flexi-carbon Leg. Acquired 58 matter. Acquired Antimatter Reactor. Acquired derelict log, extracted data. Data stored: Factory emergency access points. Penetrated by Slug. Map ----- +----------------------------------------------------+ | ?????????????????????????????????????????????????? | | ?????????????????????????????????????????????????? | | ?????????????????????????????????????????????????? | | ?????????????????????????????????????????????????? | | ?????????????????????????????????????????????????? | | ?????????????????????????????????????????????????? | | ?????????????????????????????????????????????????? | | ??????????####???????????????????????????????????? | | ?????????## ##??????????????????????????????????? | | ???????### ######?????????????????????????????? | | ??????## #?????????????????????????????? | | ???#### #?????????????????????????????? | | ??## ##?????????????????????????????? | | ??# ###??????????????????????????????? | | ?## #######????????????????????????????????? | | ## ##?????????????????????????????????????? | | ###???????????????????????????????????? | | ##??????????????????????????????????? | | # ##?????????????????????????????????? | | ## ##????????????????????????????????? | | ###??????????????????????????????? | | %% #######????????????????????????? | | "#"""+"%#"### ## ##???????????????????????? | | % # """# ##???????? ##???????????? | | """""# ### #???????????? | | #"##+#""T"# @ #??????????? | | #"""%] # ## h #????????? | | # ] # ############# ## ????????? | | # """ # #?????????????????????????????? | | + """ # ## #?????????????????????????????? | | + """ # ## ##?????????????????????????????? | | " """ # ####??????????????????????????????? | | # # ##???????????????????????????????? | | #""" # #???????????????????????????????? | | "#####""""# ##??#???? ???????????????????? | | %!%! #????# ## ### ???????????????????? | | ! ! %#????# #????????????????????? | | ####++####### #?????????????????????? | | ###### #?????????????????????? | | ##??????????????????????????????? | | # #???????????????????????????????? | | # ###### ##???????????????????????????????? | | ###?????# ##????????????????????????????????? | | ????????# ######?????????????????????????????????? | | ????????###??????????????????????????????????????? | | ?????????????????????????????????????????????????? | | ?????????????????????????????????????????????????? | | ?????????????????????????????????????????????????? | | ?????????????????????????????????????????????????? | | ?????????????????????????????????????????????????? | +----------------------------------------------------+ Best States ------------- Heat Dissipation 28 Energy Generation 10 Energy Capacity 650 Matter Stores 300 Matter Capacity 300 Sight Range 16 Terrain Scan Density 10 Resistance: KI 20 Resistance: TH 20 Resistance: EX 20 Resistance: EM 20 Resistance: I 20 Resistance: S 20 Resistance: P 20 Evasion (%) 50 Armor Integrity Analysis 33 Offensive Hacking 10 Item Schematics ----------------- None Robot Schematics ------------------ None Fabricated ------------ Nothing Alien Tech Used ----------------- None Achievements -------------- Backstab Help From High Places Please Form A Line Robot Respite Storm Trooper The More The Merrier The One Challenges ------------ None Game ------ Seed KineticTransportRegulator Manual? 0 Play Time 00:55:36 Cumulative 5.7 hours Start 2019.12.20 @ 14:34:43 End 2019.12.20 @ 15:28:50 Sessions 1 Manual Loads 0 Difficulty Adventurer Special Mode None Game No. 7 Rogue 0 Adventurer 7 Explorer 0 Win Type - Total 0 Types 0/0/0/0/0/0/0 Lore% 16 Gallery% 7 Achievement% 9 Wizard Run 0 Options --------- ASCII 0 Keyboard 1 Movement Numpad Keybinds 0 Fullscreen 1 Font 12/Fuzzy Map View 83x54 Tactical HUD 0 Map Filters NONE Filters NONE Steam 1 RUN: 1f1dea46-1178-46d2-92dc-041a4e67681b